bitfinex/quotes_SOLUSD_20250814
["timestamp","ask_amount","ask_price","bid_price","bid_amount"]
[1755187996603,0.52352572,192.68,192.59,19.30504041]
[1755187996896,18.58504041,192.74,192.67,18.58504041]
[1755187997093,18.58504041,192.74,192.65,0.72]
[1755187997300,18.58504041,192.66,192.58,0.03]
[1755187997513,18.58504041,192.62,192.58,0.03]
[1755187997666,0.66,192.65,192.58,18.61504041]
[1755187997863,0.52352572,192.67,192.58,0.03]
[1755187998097,18.58504041,192.62,192.58,0.03]
[1755187998292,0.52352572,192.67,192.58,0.03]
[1755187998293,1.18352572,192.61,192.58,0.03]
[1755187998594,19.24504041,192.61,192.58,0.03]
[1755187998809,18.58504041,192.59,192.58,0.03]
[1755187999005,19.24504041,192.59,192.58,0.03]
[1755187999178,26.66,192.59,192.37,0.72]
[1755187999505,18.58504041,192.49,192.43,23.78173531]
[1755187999699,18.58504041,192.5,192.44,18.58504041]
[1755187999998,18.58504041,192.53,192.47,18.58504041]
[1755188000199,0.52352572,192.56,192.48,18.58504041]
[1755188000407,6.37618318,192.58,192.51,18.58504041]
[1755188000615,0.52352572,192.6,192.52,18.58504041]
[1755188000889,18.58504041,192.58,192.52,18.58504041]
[1755188001100,18.58504041,192.56,192.5,0.72]
[1755188001309,0.66,192.56,192.48,18.58504041]
[1755188001466,18.58504041,192.55,192.47,0.72]
[1755188001670,18.58504041,192.57,192.47,0.72]
[1755188001865,19.10856613,192.56,192.49,18.58504041]
[1755188002070,0.52352572,192.56,192.47,0.72]
[1755188002303,18.58504041,192.56,192.5,18.58504041]
[1755188002463,18.58504041,192.56,192.49,18.58504041]
[1755188002798,18.58504041,192.57,192.51,18.58504041]
[1755188003100,18.58504041,192.57,192.5,18.58504041]
[1755188003394,18.58504041,192.57,192.47,0.72]
[1755188003395,18.58504041,192.55,192.48,5.19534497]
[1755188003696,18.58504041,192.55,192.49,18.58504041]
[1755188004121,18.58504041,192.58,192.48,18.18370739]
[1755188004269,0.52352572,192.6,192.5,0.72]
[1755188004270,18.58504041,192.57,192.5,0.72]
[1755188004469,18.58504041,192.57,192.51,18.58504041]
[1755188004805,0.66,192.6,192.51,18.58504041]
[1755188005396,6.37576402,192.6,192.52,5.19426553]
[1755188005596,18.58504041,192.53,192.41,0.72]
[1755188005804,1.18352572,192.52,192.41,19.30504041]
[1755188006023,18.58504041,192.48,192.42,44.36]
[1755188006183,18.58504041,192.48,192.42,62.94504041]
[1755188006501,18.58504041,192.44,192.37,19.30504041]
[1755188006670,0.52352572,192.43,192.35,18.58504041]
[1755188006871,1.18352572,192.49,192.39,18.58504041]
[1755188007090,0.66,192.49,192.43,18.58504041]
[1755188007290,19.24504041,192.49,192.43,18.58504041]
[1755188007495,18.58504041,192.49,192.43,23.78172077]
[1755188007888,18.58504041,192.5,192.43,23.78172077]
[1755188008300,18.58504041,192.47,192.42,44.3]
[1755188008680,18.58504041,192.47,192.4,19.30504041]
[1755188008913,18.58504041,192.47,192.42,44.3]
[1755188009092,5.71811706,192.51,192.43,19.30504041]
[1755188009279,5.71811706,192.51,192.43,0.72]
[1755188009480,5.71811706,192.51,192.43,5.91656553]
[1755188009790,18.58504041,192.48,192.43,5.91656553]
[1755188009995,18.58504041,192.48,192.42,62.88504041]
[1755188010611,18.58504041,192.48,192.42,62.78504041]
[1755188010787,0.71,192.49,192.42,44.2]
[1755188010991,18.58504041,192.48,192.42,18.58504041]
[1755188011321,18.58504041,192.47,192.42,44.2]
[1755188011841,0.52352572,192.51,192.46,18.58504041]
[1755188012118,18.58504041,192.49,192.43,0.69]
[1755188012409,0.71,192.53,192.43,19.27504041]
[1755188012719,0.52352572,192.52,192.42,49.39670498]
[1755188012896,18.58504041,192.49,192.43,18.58504041]
[1755188013205,18.58504041,192.5,192.44,5.19642485]
[1755188013414,0.52352572,192.52,192.44,23.78146526]
[1755188013620,0.52352572,192.52,192.44,5.19642485]
[1755188013796,0.52352572,192.52,192.47,18.58504041]
[1755188013985,18.58504041,192.54,192.48,18.58504041]
[1755188014402,18.58504041,192.54,192.48,62.82504041]
[1755188014683,18.58504041,192.53,192.48,44.24]
[1755188015094,18.58504041,192.53,192.48,49.43517259]
[1755188015494,18.58504041,192.53,192.48,5.19517259]
[1755188015699,18.58504041,192.52,192.47,5.19556245]
[1755188016016,0.71,192.53,192.47,49.35556245]
[1755188016326,18.58504041,192.52,192.47,49.35556245]
[1755188016491,5.19379461,192.54,192.46,49.31584793]
[1755188016492,18.58504041,192.51,192.46,49.31584793]
[1755188016681,5.19379461,192.54,192.44,44.14]
[1755188016682,0.71,192.5,192.44,44.14]
[1755188016887,0.71,192.5,192.42,18.1893774]
[1755188017119,0.52352572,192.53,192.46,5.19588485]
[1755188017419,18.58504041,192.51,192.46,5.19588485]
[1755188017614,0.52352572,192.53,192.46,5.19588485]
[1755188017797,18.58504041,192.51,192.46,5.19588485]
[1755188018108,18.58504041,192.55,192.49,18.58504041]
[1755188018310,19.29504041,192.57,192.51,18.58504041]
[1755188018503,0.71,192.57,192.51,18.58504041]
[1755188018698,18.58504041,192.56,192.5,18.58504041]
[1755188019292,18.58504041,192.56,192.51,5.19453534]
[1755188019792,19.29504041,192.57,192.51,5.19453534]
[1755188019996,18.58504041,192.58,192.52,18.58504041]
[1755188020497,1.23352572,192.6,192.52,49.63504041]
[1755188020700,1.23352572,192.63,192.52,31.05]
[1755188021015,0.06,192.56,192.52,31.05]
[1755188021326,18.58504041,192.53,192.46,0.03]
[1755188021491,18.58504041,192.48,192.46,0.03]
[1755188021688,19.81856613,192.47,192.46,0.03]
[1755188022010,19.29504041,192.47,192.46,0.03]
[1755188023289,24.49065531,192.47,192.46,0.03]
[1755188023522,18.58504041,192.47,192.46,0.03]
[1755188023713,18.58504041,192.47,192.4,49.66504041]
[1755188023714,19.29504041,192.47,192.4,0.03]
[1755188024023,18.58504041,192.41,192.4,0.03]
[1755188024339,19.29504041,192.41,192.4,0.03]
[1755188025100,18.58504041,192.41,192.4,0.03]
[1755188025412,24.49227548,192.41,192.4,0.03]
[1755188025938,19.29504041,192.41,192.4,0.03]
[1755188026093,24.49227548,192.41,192.4,0.03]
[1755188026708,25.0158012,192.41,192.4,0.03]
[1755188027590,5.90723507,192.41,192.4,0.03]
[1755188027805,24.49227548,192.41,192.4,0.03]
[1755188028426,37.48536315,192.41,192.28,0.4867899]
[1755188028615,1.23352572,192.4,192.28,0.4867899]
[1755188028803,18.58504041,192.32,192.28,0.4867899]
[1755188029111,45.17,192.39,192.28,0.4867899]
[1755188029112,0.52352572,192.38,192.28,0.4867899]
[1755188029310,18.58504041,192.32,192.28,0.4867899]
[1755188029506,0.71,192.35,192.28,0.4867899]
[1755188029706,0.52352572,192.38,192.29,19.27504041]
[1755188030024,5.72122224,192.4,192.3,5.200208]
[1755188030239,0.52352572,192.41,192.34,0.03]
[1755188030526,18.58504041,192.37,192.34,0.03]
[1755188030735,18.58504041,192.4,192.35,0.69]
[1755188030931,18.58504041,192.37,192.34,0.03]
[1755188031231,18.58504041,192.39,192.35,0.69]
[1755188031437,5.90643244,192.44,192.34,0.03]
[1755188031438,18.58504041,192.37,192.34,0.03]
[1755188031852,18.58504041,192.38,192.34,0.03]
[1755188032010,0.71,192.41,192.34,0.03]
[1755188032210,18.58504041,192.37,192.34,0.03]
[1755188032628,0.52352572,192.44,192.35,18.58504041]
[1755188032814,18.58504041,192.41,192.35,0.69]
[1755188033004,18.58504041,192.41,192.35,19.27504041]
[1755188033211,18.58504041,192.44,192.37,18.58504041]
[1755188033411,18.58504041,192.43,192.38,0.69]
[1755188033744,18.58504041,192.48,192.41,18.58504041]
[1755188034236,18.58504041,192.42,192.37,5.19831574]
[1755188034412,0.71,192.45,192.38,0.69]
[1755188034918,18.58504041,192.42,192.38,0.69]
[1755188035309,5.19623027,192.45,192.38,5.88796474]
[1755188035516,18.58504041,192.41,192.38,5.88796474]
[1755188035919,18.58504041,192.4,192.34,0.03]
[1755188036126,0.71,192.44,192.34,0.03]
[1755188036334,18.58504041,192.4,192.34,0.03]
[1755188036636,18.58504041,192.39,192.35,0.69]
[1755188036818,18.58504041,192.37,192.34,0.03]
[1755188037021,0.52352572,192.43,192.35,0.69]
[1755188037214,1.23352572,192.48,192.38,18.58504041]
[1755188037530,5.1956149,192.47,192.37,0.69]
[1755188037842,0.52352572,192.46,192.38,18.58504041]
[1755188038151,0.52352572,192.47,192.38,18.58504041]
[1755188038555,18.58504041,192.44,192.37,0.72]
[1755188038725,18.58504041,192.43,192.37,19.30504041]
[1755188038931,18.58504041,192.43,192.38,5.19804553]
[1755188039235,18.58504041,192.44,192.39,0.69]
[1755188039747,18.64504041,192.45,192.39,0.69]
[1755188039940,18.64504041,192.45,192.39,19.27504041]
[1755188040139,18.64504041,192.45,192.4,18.58504041]
[1755188040356,0.06,192.45,192.41,0.69]
[1755188040856,18.58504041,192.42,192.37,0.03]
[1755188041070,0.06,192.45,192.38,0.72]
[1755188041360,0.06,192.45,192.41,18.58504041]
[1755188041560,0.06,192.45,192.38,0.72]
[1755188041720,18.58504041,192.43,192.38,0.72]
[1755188041924,18.58504041,192.44,192.38,19.30504041]
[1755188042461,18.58504041,192.44,192.38,0.72]
[1755188042628,18.58504041,192.44,192.37,0.03]
[1755188042629,18.58504041,192.42,192.37,0.03]
[1755188043064,0.06,192.45,192.39,18.58504041]
[1755188043272,0.06,192.45,192.42,18.58504041]
[1755188043466,0.06,192.45,192.38,5.19804553]
[1755188043467,18.58504041,192.43,192.38,5.19804553]
[1755188043636,18.58504041,192.42,192.37,36.99826773]
[1755188043837,18.58504041,192.4,192.37,0.03]
[1755188044038,0.52352572,192.44,192.37,0.03]
[1755188044039,18.58504041,192.39,192.37,0.03]
[1755188044462,18.58504041,192.38,192.37,0.03]
[1755188044643,0.52352572,192.44,192.37,0.03]
[1755188044965,18.58504041,192.38,192.37,0.03]
[1755188045140,19.28504041,192.38,192.37,0.03]
[1755188045337,19.28504041,192.38,192.28,0.4867899]
[1755188045570,18.58504041,192.31,192.28,0.4867899]
[1755188046143,0.7,192.33,192.28,0.4867899]
[1755188046464,18.58504041,192.35,192.29,19.30504041]
[1755188046966,18.58504041,192.35,192.3,5.92015076]
[1755188047178,18.58504041,192.35,192.3,5.20015076]
[1755188047341,18.58504041,192.33,192.28,5.68734367]
[1755188047857,18.58504041,192.34,192.29,31.77]
[1755188048054,18.58504041,192.34,192.29,31.05]
[1755188048260,19.28504041,192.34,192.29,31.05]
[1755188048433,0.7,192.37,192.3,0.72]
[1755188048637,18.58504041,192.36,192.3,19.30504041]
[1755188048866,18.58504041,192.35,192.29,36.25034141]
[1755188049056,18.58504041,192.34,192.3,44.18]
[1755188049256,5.19838122,192.37,192.28,5.68747494]
[1755188049470,18.58504041,192.33,192.29,44.16]
[1755188049675,18.58504041,192.34,192.29,44.16]
[1755188049964,5.19838122,192.37,192.3,0.72]
[1755188050164,18.58504041,192.35,192.3,0.72]
[1755188050464,18.58504041,192.36,192.31,5.1999376]
[1755188050764,18.58504041,192.35,192.3,5.92014747]
[1755188051058,0.52352572,192.37,192.3,5.92014747]
[1755188051263,18.58504041,192.35,192.3,5.92014747]
[1755188051466,18.58504041,192.34,192.3,44.0]
[1755188051659,5.72157125,192.38,192.3,44.0]
[1755188051967,18.58504041,192.35,192.3,44.0]
[1755188052151,5.72157125,192.38,192.3,44.0]
[1755188052360,18.58504041,192.35,192.3,49.20011382]
[1755188052878,12.03736802,192.35,192.3,49.92011382]
[1755188053172,12.03736802,192.35,192.3,49.90011382]
[1755188053341,12.03736802,192.35,192.3,5.92011382]
[1755188053964,1.22352572,192.39,192.31,12.03736802]
[1755188054145,12.03736802,192.37,192.31,225.55736802]
[1755188055366,12.03736802,192.37,192.31,213.52]
[1755188055871,12.03736802,192.36,192.32,48.93966722]
[1755188056057,12.03736802,192.36,192.32,43.74]
[1755188056259,12.03736802,192.34,192.31,212.8]
[1755188056461,12.73736802,192.34,192.3,31.05]
[1755188056655,12.03736802,192.33,192.3,31.05]
[1755188056884,12.03736802,192.32,192.28,0.4867899]
[1755188057063,12.03736802,192.32,192.28,44.1867899]
[1755188057373,0.7,192.35,192.28,44.1867899]
[1755188057567,12.03736802,192.33,192.28,44.1867899]
[1755188057872,12.03736802,192.31,192.28,0.4867899]
[1755188058372,12.73736802,192.31,192.28,0.4867899]
[1755188058571,12.03736802,192.3,192.28,0.4867899]
[1755188058780,12.73736802,192.3,192.28,0.4867899]
[1755188058970,5.19944643,192.33,192.28,0.4867899]
[1755188059169,12.03736802,192.31,192.28,0.4867899]
[1755188059386,12.03736802,192.3,192.28,0.4867899]
[1755188059568,5.89885625,192.35,192.28,0.4867899]
[1755188059777,12.03736802,192.31,192.28,0.4867899]
[1755188059960,12.03736802,192.29,192.28,0.4867899]
[1755188060164,12.73736802,192.29,192.28,0.4867899]
[1755188062181,17.93784646,192.29,192.28,0.4867899]
[1755188062863,0.7,192.29,192.28,0.4867899]
[1755188063062,12.73736802,192.29,192.28,0.4867899]
[1755188064154,17.93784646,192.29,192.28,0.4867899]
[1755188064672,12.73736802,192.29,192.28,0.4867899]
[1755188064978,12.03736802,192.29,192.28,0.4867899]
[1755188065183,12.03736802,192.3,192.28,0.4867899]
[1755188065381,0.7,192.35,192.29,0.72]
[1755188065572,12.03736802,192.35,192.29,12.75736802]
[1755188065886,12.03736802,192.34,192.29,12.75736802]
[1755188066068,12.03736802,192.3,192.28,0.4867899]
[1755188066267,13.26089374,192.29,192.28,0.4867899]
[1755188067871,18.46137218,192.29,192.28,0.4867899]
[1755188068270,6.42400416,192.29,192.28,0.4867899]
[1755188068466,18.46137218,192.29,192.28,0.4867899]
[1755188069070,18.46137218,192.29,192.26,0.03]
[1755188069390,38.03736802,192.27,192.26,0.03]
[1755188069591,39.26089374,192.27,192.26,0.03]
[1755188069977,44.46191313,192.27,192.26,0.03]
[1755188070470,44.46191313,192.27,192.26,1e-08]
[1755188070888,57.46446162,192.27,192.14,5.2044747]
[1755188071088,12.03736802,192.19,192.14,5.2044747]
[1755188071272,12.03736802,192.19,192.15,0.65]
[1755188071469,0.52352572,192.23,192.14,17.24184272]
[1755188071672,0.52352572,192.23,192.16,0.65]
[1755188071992,26.52352572,192.25,192.24,0.03]
[1755188072294,39.26089374,192.25,192.24,0.03]
[1755188072484,26.52352572,192.25,192.24,0.03]
[1755188072684,38.56089374,192.25,192.24,0.03]
[1755188072996,43.93892848,192.25,192.24,0.03]
[1755188073169,5.90156046,192.25,192.24,0.03]
[1755188073367,17.23892848,192.25,192.24,0.03]
[1755188073570,17.76222855,192.26,192.24,0.03]
[1755188073889,12.56089374,192.25,192.24,0.03]
[1755188074765,0.52352572,192.25,192.24,0.03]
[1755188075584,12.56089374,192.25,192.24,0.03]
[1755188075796,0.52352572,192.26,192.24,0.03]
[1755188075993,12.56089374,192.26,192.24,0.03]
[1755188076702,12.03736802,192.26,192.24,0.03]
[1755188076996,0.7,192.26,192.24,0.03]
[1755188077198,0.52352572,192.27,192.11,31.05]
[1755188077199,39.26089374,192.25,192.11,31.05]
[1755188077397,31.72521179,192.25,192.17,12.03736802]
[1755188077573,12.03736802,192.22,192.16,12.03736802]
[1755188077765,31.72521179,192.25,192.15,0.65]
[1755188077971,12.03736802,192.22,192.16,12.03736802]
[1755188078494,12.03736802,192.22,192.15,0.65]
[1755188078700,5.20219062,192.23,192.16,17.24114961]
[1755188078865,0.52352572,192.24,192.16,5.20378159]
[1755188079066,0.7,192.23,192.15,0.65]
[1755188079281,0.52352572,192.22,192.16,12.03736802]
[1755188079479,0.52352572,192.22,192.15,5.85414508]
[1755188079679,0.52352572,192.24,192.17,12.03736802]
[1755188079899,1.22352572,192.24,192.16,12.03736802]
[1755188080204,1.22352572,192.24,192.15,5.85414508]
[1755188080379,17.23985452,192.22,192.15,5.85414508]
[1755188080895,17.23985452,192.22,192.16,12.03736802]
[1755188081403,5.20211995,192.23,192.16,12.03736802]
[1755188081909,12.03736802,192.22,192.15,5.85414508]
[1755188082206,0.7,192.27,192.19,12.03736802]
[1755188082370,5.72498349,192.26,192.17,5.20372586]
[1755188082565,0.7,192.25,192.16,5.85396825]
[1755188082786,0.7,192.25,192.17,12.03736802]
[1755188082787,0.52352572,192.24,192.17,12.03736802]
[1755188082974,0.52352572,192.24,192.16,5.20396825]
[1755188082975,0.7,192.23,192.16,5.20396825]
[1755188083186,0.7,192.23,192.17,12.03736802]
[1755188083391,12.73736802,192.23,192.16,5.85396825]
[1755188083584,12.73736802,192.23,192.17,12.03736802]
[1755188084085,0.7,192.23,192.17,12.03736802]
[1755188084288,12.73736802,192.23,192.16,0.65]
[1755188084497,17.76326602,192.22,192.16,12.68736802]
[1755188084722,17.76326602,192.22,192.16,0.65]
[1755188084882,17.76326602,192.22,192.16,12.68736802]
[1755188085305,5.725898,192.22,192.16,0.65]
[1755188085517,12.03736802,192.2,192.13,0.65]
[1755188085712,5.725898,192.22,192.14,12.03736802]
[1755188086009,12.03736802,192.2,192.14,12.03736802]
[1755188086215,0.7,192.19,192.07,31.05]
[1755188086383,17.24163551,192.15,192.1,0.65]
[1755188086589,12.03736802,192.16,192.11,0.65]
[1755188087307,12.03736802,192.16,192.12,0.65]
[1755188087706,0.52352572,192.18,192.12,12.68736802]
[1755188087908,43.28,192.19,192.13,0.65]
[1755188088206,43.28,192.19,192.14,12.03736802]
[1755188088382,43.80352572,192.19,192.14,12.68736802]
[1755188088795,49.00673706,192.19,192.15,0.65]
[1755188088997,48.48321134,192.19,192.15,0.65]
[1755188089198,0.52352572,192.22,192.16,12.68736802]
[1755188089422,12.56089374,192.22,192.16,12.68736802]
[1755188089589,0.52352572,192.22,192.16,0.65]
[1755188089808,0.52352572,192.22,192.17,12.03736802]
[1755188090006,17.76337408,192.22,192.16,12.68736802]
[1755188090210,12.03736802,192.2,192.12,0.65]
[1755188090516,12.03736802,192.2,192.14,12.03736802]
[1755188091084,0.52352572,192.19,192.12,5.85486363]
[1755188091381,12.03736802,192.17,192.11,12.03736802]
[1755188091583,12.03736802,192.18,192.12,12.03736802]
[1755188091892,0.52352572,192.17,192.12,12.03736802]
[1755188092202,12.03736802,192.18,192.11,0.65]
[1755188092390,1.22352572,192.19,192.12,5.20508015]
[1755188092391,12.73736802,192.19,192.12,5.20508015]
[1755188092595,12.73736802,192.19,192.13,12.03736802]
[1755188092794,0.7,192.19,192.14,12.03736802]
[1755188093003,0.52352572,192.19,192.14,12.03736802]
[1755188093202,0.52352572,192.19,192.14,12.68736802]
[1755188093615,0.52352572,192.2,192.14,0.65]
[1755188093909,12.56089374,192.21,192.15,12.03736802]
[1755188094084,12.03736802,192.2,192.14,12.03736802]
[1755188094288,12.73736802,192.2,192.14,12.03736802]
[1755188094510,5.20318434,192.19,192.14,12.03736802]
[1755188094683,0.7,192.19,192.14,12.03736802]
[1755188095791,0.7,192.19,192.11,0.65]
[1755188095995,0.7,192.19,192.14,12.03736802]
[1755188096429,17.94063358,192.19,192.12,0.65]
[1755188096588,17.24063358,192.19,192.13,12.03736802]
[1755188096790,6.42647723,192.2,192.14,12.03736802]
[1755188097001,5.72647723,192.2,192.14,0.65]
[1755188097198,17.76384525,192.2,192.14,0.65]
[1755188097404,1521.23120185,192.0,191.98,31.05]
[1755188097693,1278.176088,192.0,191.99,89.86]
[1755188097916,1111.9052346,192.0,191.99,89.86]
[1755188098095,1051.51059229,192.0,191.99,89.86]
[1755188098294,1051.51059229,192.0,191.99,95.06860461]
[1755188098513,869.70723154,192.0,191.99,75.88334065]
[1755188098718,782.57616905,192.0,191.99,119.14334065]
[1755188098889,699.74561967,192.0,191.99,119.14334065]
[1755188099218,699.74561967,192.0,191.99,75.88334065]
[1755188099434,699.68547345,192.0,191.99,52.24860461]
[1755188099802,699.68547345,192.0,191.99,51.80860461]
[1755188100120,699.68547345,192.0,191.99,78.24860461]
[1755188100499,699.68547345,192.0,191.99,52.24860461]
[1755188100693,711.72284147,192.0,191.97,31.05]
[1755188100890,12.03736802,191.99,191.98,31.05]
[1755188101300,699.68547345,192.0,191.98,31.05]
[1755188102021,699.68547345,192.0,191.98,36.25863572]
[1755188102530,699.68547345,192.0,191.98,36.69863572]
[1755188102691,711.72284147,192.0,191.98,36.25863572]
[1755188103321,700.39547345,192.0,191.98,36.25863572]
[1755188103520,0.71,191.99,191.98,35.53863572]
[1755188103828,0.71,191.99,191.94,0.03]
[1755188103829,10.0,191.95,191.94,0.03]
[1755188104008,10.0,191.9,191.73,14.74792594]
[1755188104205,10.0,191.88,191.79,5.88403618]
[1755188104448,10.0,191.87,191.79,5.21403618]
[1755188104636,12.03736802,191.81,191.79,5.21403618]
[1755188104806,10.0,191.86,191.79,0.67]
[1755188105009,10.0,191.86,191.78,0.49311185]
[1755188105010,12.03736802,191.8,191.78,0.49311185]
[1755188105206,12.03736802,191.79,191.78,0.49311185]
[1755188105625,10.0,191.76,191.71,5.2160213]
[1755188105846,11.11352572,191.79,191.71,5.8860213]
[1755188106017,12.03736802,191.72,191.68,5.21702838]
[1755188106360,10.0,191.77,191.68,5.21702838]
[1755188106646,12.03736802,191.73,191.68,5.21702838]
[1755188106853,10.0,191.72,191.61,20.98033141]
[1755188107156,10.0,191.73,191.64,0.67]
[1755188107448,10.0,191.73,191.55,26.10223073]
[1755188107449,10.0,191.51,191.34,0.67]
[1755188107619,10.0,191.51,191.39,46.16]
[1755188107620,22.62736802,191.51,191.39,46.16]
[1755188107818,22.62736802,191.51,191.41,46.16]
[1755188108056,22.62736802,191.51,191.3,26.06329296]
[1755188108057,10.0,191.47,191.4,46.22]
[1755188108241,0.52352572,191.46,191.36,0.67]
[1755188108418,1.11352572,191.46,191.31,13.06765544]
[1755188108621,11.11352572,191.46,191.32,0.67]
[1755188108819,11.11352572,191.49,191.32,0.67]
[1755188109046,0.52352572,191.49,191.34,26.0]
[1755188109247,0.52352572,191.49,191.35,0.67]
[1755188109458,0.52352572,191.54,191.51,26.0]
[1755188109759,0.59,191.63,191.55,26.0]
[1755188110057,12.088773,191.61,191.52,0.67]
[1755188110344,10.0,191.49,191.4,0.67]
[1755188110546,10.0,191.51,191.4,0.67]
[1755188110749,1.11352572,191.54,191.4,0.67]
[1755188111047,0.52352572,191.56,191.4,0.67]
[1755188111231,10.0,191.51,191.4,47.89]
[1755188111437,10.0,191.53,191.46,18.84347471]
[1755188111642,10.0,191.56,191.47,0.67]
[1755188111843,10.0,191.62,191.54,26.0]
[1755188112137,10.0,191.62,191.47,0.67]
[1755188112138,10.0,191.65,191.58,26.0]
[1755188112346,0.52352572,191.71,191.61,26.0]
[1755188112347,29.95700043,191.71,191.61,26.0]
[1755188112632,10.52352572,191.71,191.65,18.84347471]
[1755188112835,0.52352572,191.73,191.68,18.84347471]
[1755188113019,41.71782567,191.74,191.71,18.84347471]
[1755188113220,10.0,191.7,191.65,18.84347471]
[1755188113446,10.0,191.62,191.6,0.67]
[1755188113620,10.0,191.65,191.61,18.84347471]
[1755188113816,0.52352572,191.73,191.64,18.84347471]
[1755188114019,10.0,191.78,191.71,26.0]
[1755188114249,10.0,191.7,191.68,5.21702838]
[1755188114436,10.0,191.67,191.64,5.2181173]
[1755188114621,10.0,191.68,191.64,5.2181173]
[1755188114824,10.0,191.75,191.67,44.84347471]
[1755188115041,10.0,191.77,191.73,18.84347471]
[1755188115226,10.0,191.77,191.7,26.67]
[1755188115424,10.0,191.74,191.7,0.67]
[1755188115753,28.84347471,191.72,191.67,47.32]
[1755188116055,10.0,191.77,191.71,26.0]
[1755188116359,10.0,191.77,191.73,26.0]
[1755188116646,0.52352572,191.82,191.68,5.21702838]
[1755188116647,10.0,191.72,191.68,5.21702838]
[1755188117025,10.0,191.75,191.69,19.51347471]
[1755188117217,10.0,191.75,191.71,44.84347471]
[1755188117446,10.0,191.78,191.72,44.84347471]
[1755188117628,2.71330094,191.89,191.72,44.84347471]
[1755188117629,28.84347471,191.81,191.72,26.0]
[1755188117839,10.0,191.84,191.78,18.84347471]
[1755188118046,10.0,191.88,191.82,18.84347471]
[1755188118355,10.0,191.91,191.86,18.84347471]
[1755188118556,10.0,191.9,191.85,18.84347471]
[1755188118731,0.52352572,191.97,191.92,26.0]
[1755188118929,699.68547345,192.0,191.96,44.84347471]
[1755188119233,699.68547345,192.0,191.93,48.13]
[1755188119234,709.68547345,192.0,191.97,0.67]
[1755188119457,699.68547345,192.0,191.98,0.67]
[1755188119635,699.68547345,192.0,191.99,18.84347471]
[1755188119832,699.68547345,192.0,191.99,0.67]
[1755188120033,699.68547345,192.0,191.99,24.72207932]
[1755188120241,699.68547345,192.0,191.99,50.72207932]
[1755188120641,699.68547345,192.0,191.99,31.87860461]
[1755188120827,699.68547345,192.0,191.94,26.0]
[1755188120828,709.68547345,192.0,191.94,26.0]
[1755188121023,699.68547345,192.0,191.99,26.0]
[1755188121336,10.0,191.99,191.95,73.32]
[1755188121551,10.0,191.99,191.95,26.0]
[1755188121862,10.0,191.94,191.87,0.67]
[1755188122045,28.84347471,191.93,191.88,5.21159057]
[1755188122241,10.0,191.93,191.88,5.88159057]
[1755188122447,699.68547345,192.0,191.95,26.0]
[1755188122826,718.52894816,192.0,191.96,0.67]
[1755188123025,699.68547345,192.0,191.99,26.0]
[1755188123231,699.68547345,192.0,191.99,26.67]
[1755188123433,699.68547345,192.0,191.99,92.97347471]
[1755188123849,698.96547345,192.0,191.99,92.95347471]
[1755188124163,698.96547345,192.0,191.99,5.20860461]
[1755188124339,698.96547345,192.0,191.99,26.0]
[1755188124534,698.96547345,192.0,191.99,45.51347471]
[1755188124755,670.15955926,192.0,191.99,60.61969028]
[1755188125058,581.96999208,192.0,191.99,108.41969028]
[1755188125256,549.63139796,192.0,191.99,108.41969028]
[1755188125447,549.63139796,192.0,191.99,108.39969028]
[1755188125631,360.1837529,192.0,191.99,108.39969028]
[1755188125854,283.0859504,192.0,191.99,108.39969028]
[1755188126055,234.01112505,192.0,191.99,113.60829489]
[1755188126260,172.54918708,192.0,191.99,113.60829489]
[1755188126437,172.54918708,192.0,191.99,65.82829489]
[1755188126755,47.90151027,192.0,191.99,113.62829489]
[1755188126947,0.06,192.02,192.0,15.10621557]
[1755188127150,0.06,192.06,192.05,26.0]
[1755188127347,0.06,192.06,192.05,92.64347471]
[1755188127751,0.06,192.06,192.05,26.0]
[1755188127955,0.06,192.06,192.05,44.84347471]
[1755188128476,0.06,192.06,192.05,45.36417244]
[1755188128477,1e-08,192.06,192.05,45.36417244]
[1755188128778,0.71,192.18,192.05,0.52069773]
[1755188128948,29.55347471,192.18,192.15,26.0]
[1755188129150,10.0,192.16,192.11,26.0]